fUST/lending_fUST_20241216
["ID","MTS","AMOUNT","RATE_DAILY","PERIOD"]
[345567564,1734355833647,-151.0,0.00026499,7]
[345567566,1734355833656,-151.0,0.00026499,7]
[345567568,1734355833666,-240.585841,0.00026499,7]
[345567570,1734355833675,-151.0,0.00026499,7]
[345567572,1734355833689,-151.0,0.00026499,7]
[345567574,1734355833698,-151.0,0.00026499,7]
[345567576,1734355833707,-151.0,0.00026499,7]
[345567578,1734355833717,-373.731989,0.00026499,7]
[345567579,1734355833727,-373.731989,0.00026499,7]
[345567581,1734355833738,-151.0,0.00026499,7]
[345567583,1734355833747,-274.81608,0.00026499,7]
[345567585,1734355833757,-427.721466,0.00026499,7]
[345567587,1734355833767,-274.81608,0.00026499,7]
[345567589,1734355833776,-427.721466,0.00026499,7]
[345567591,1734355833786,-151.0,0.00026499,7]
[345567593,1734355833795,-151.0,0.00026499,7]
[345567595,1734355833804,-151.0,0.00026499,7]
[345567597,1734355833813,-151.0,0.00026499,7]
[345567599,1734355833822,-151.0,0.00026499,7]
[345567601,1734355833832,-151.0,0.00026499,7]
[345567603,1734355833842,-151.0,0.00026499,7]
[345567605,1734355833852,-151.0,0.00026499,7]
[345567607,1734355833861,-151.0,0.00026499,7]
[345567609,1734355833872,-151.0,0.00026499,7]
[345567611,1734355833881,-380.011445,0.00026499,7]
[345567613,1734355833891,-380.011445,0.00026499,7]
[345567615,1734355833901,-301.509133,0.00026499,7]
[345567617,1734355833910,-151.0,0.00026499,7]
[345567619,1734355833920,-151.0,0.00026499,7]
[345567621,1734355833929,-151.0,0.00026499,7]
[345567623,1734355833939,-580.046514,0.00026499,7]
[345567625,1734355833948,-190.396111,0.00026499,7]
[345567627,1734355833957,-580.046514,0.00026499,7]
[345567629,1734355833966,-190.396111,0.00026499,7]
[345567631,1734355833976,-502.121619,0.00026499,7]
[345567633,1734355833988,-502.121619,0.00026499,7]
[345567635,1734355833998,-780.102807,0.00026499,7]
[345567637,1734355834007,-275.41058,0.00026499,7]
[345567639,1734355834016,-780.102807,0.00026499,7]
[345567641,1734355834026,-275.41058,0.00026499,7]
[345567643,1734355834036,-417.54902941,0.00026499,2]
[345567645,1734355834046,-364.15467263,0.00026499,2]
[345567647,1734355834055,-500.0,0.00026499,2]
[345567649,1734355834064,-500.06542566,0.00026499,2]
[345567651,1734355834073,-500.0,0.00026499,2]
[345567653,1734355834083,-500.0,0.00026499,2]
[345567655,1734355834093,-500.0,0.00026499,2]
[345567657,1734355834102,-914.117617,0.00026499,7]
[345567659,1734355834111,-914.117617,0.00026499,7]
[345567661,1734355834120,-151.0,0.00026499,7]
[345567663,1734355834131,-151.0,0.00026499,7]
[345567664,1734355834140,-165.720741,0.00026499,7]
[345567667,1734355834151,-165.720741,0.00026499,7]
[345567669,1734355834160,-408.451995,0.00026499,7]
[345567671,1734355834170,-408.451995,0.00026499,7]
[345567673,1734355834179,-449.343778,0.00026499,7]
[345567675,1734355834189,-549.952747,0.00026499,7]
[345567677,1734355834199,-549.952747,0.00026499,7]
[345567679,1734355834208,-449.343778,0.00026499,7]
[345567681,1734355834217,-151.0,0.00026499,7]
[345567683,1734355834227,-177.204315,0.00026499,7]
[345567685,1734355834238,-151.0,0.00026499,7]
[345567687,1734355834247,-177.204315,0.00026499,7]
[345567689,1734355834257,-151.0,0.00026499,7]
[345567690,1734355834266,-747626.98847388,0.000265,2]
[345567691,1734355834275,-281.7532416,0.000265,2]
[345567692,1734355834285,-2483.08940726,0.000265,2]
[345567693,1734355834294,-31952.41832566,0.000265,2]
[345567694,1734355834305,-575.08,0.000265,14]
[345567695,1734355834315,-635676.49400718,0.000265,2]
[345567696,1734355834324,-160618.18802182,0.000265,2]
[345567697,1734355834334,-18492.91,0.000265,2]
[345567698,1734355834343,-151.0,0.000265,13]
[345567699,1734355834353,-151.0,0.000265,15]
[345567700,1734355834364,-151.0,0.000265,13]
[345567701,1734355834373,-160.900803,0.000265,7]
[345567702,1734355834383,-160.900803,0.000265,7]
[345567703,1734355834392,-160.900803,0.000265,7]
[345567704,1734355834402,-160.900803,0.000265,7]
[345567705,1734355834411,-160.900803,0.000265,7]
[345567706,1734355834422,-160.900803,0.000265,7]
[345567707,1734355834432,-160.900803,0.000265,7]
[345567708,1734355834440,-160.900803,0.000265,7]
[345567709,1734355834450,-151.0,0.000265,7]
[345567710,1734355834459,-151.0,0.000265,7]
[345567711,1734355834468,-151.0,0.000265,7]
[345567713,1734355834480,-151.0,0.000265,7]
[345567715,1734355834490,-151.0,0.000265,7]
[345567717,1734355834499,-202.868299,0.000265,7]
[345567719,1734355834512,-151.0,0.000265,20]
[345567721,1734355834525,-151.0,0.000265,14]
[345567723,1734355834541,-151.0,0.000265,14]
[345567725,1734355834568,-481270.75965698,0.000265,2]
[345568004,1734355838791,-4211.64795508,0.00026136,2]
[345568007,1734355838801,-1853.65125752,0.000265,2]
[345568515,1734355843837,-771.21220442,0.000265,2]
[345568517,1734355843851,-51990.9616523,0.000265,2]
[345568782,1734355846724,-19558.65645667,0.000265,2]
[345568789,1734355846787,-10403.0,0.000265,2]
[345568792,1734355846799,-5201.9995,0.000265,2]
[345568903,1734356713359,184.975359,0.00013973,2]
[345568950,1734357031920,-173.510313,0.00024435,2]
[345568951,1734357031931,-157.48519573,0.000246,2]
[345568952,1734357031942,-219.7562634,0.00024758,2]
[345568953,1734357031951,-300.0,0.00024797,2]
[345568954,1734357031961,-300.0,0.00024797,2]
[345568955,1734357031970,-5094.13782376,0.00024798,2]
[345568956,1734357031983,-1257.91312764,0.00024798,2]
[345568976,1734357037647,-12462.76032861,0.00024798,2]
[345569002,1734357038039,-645.99999981,0.00024798,2]
[345569004,1734357038051,-446.20833079,0.00024798,2]
[345569205,1734357040097,-20176.0,0.00024798,2]
[345569206,1734357040158,-6449.999995,0.00024798,2]
[345569514,1734357043103,-1030.0,0.00024798,2]
[345569519,1734357043154,-33446.09165887,0.00024798,2]
[345569522,1734357043166,-1408.1325933,0.00024832,2]
[345569524,1734357043176,-2383.0979479,0.00024866,2]
[345569526,1734357043186,-163.215741,0.0002489,2]
[345569528,1734357043196,-612.876,0.0002517,2]
[345569530,1734357043206,-10410.4302464,0.00025411,2]
[345569532,1734357043216,-1340.9590924,0.0002565,2]
[345569533,1734357043226,-400.0,0.00025753,2]
[345569535,1734357043235,-1340.9590924,0.0002615,2]
[345569538,1734357043245,-173.7842884,0.00026234,4]
[345569540,1734357043255,-150.708,0.00026297,2]
[345569542,1734357043265,-533.0,0.00026297,2]
[345569545,1734357043274,-2154.0,0.00026297,2]
[345569547,1734357043284,-2368.0,0.00026297,2]
[345569549,1734357043294,-178.676,0.00026297,2]
[345569551,1734357043303,-183.94993341,0.00026299,2]
[345569552,1734357043312,-151.581652,0.000263,7]
[345569554,1734357043322,-10582.1031416,0.0002639,2]
[345569555,1734357043332,-17926.93580502,0.00026399,7]
[345569556,1734357043341,-1184.37928956,0.000264,2]
[345569557,1734357043352,-1899.42531461,0.000264,3]
[345569558,1734357043363,-1468.20284087,0.000264,2]
[345569559,1734357043373,-219.0,0.00026401,3]
[345569560,1734357043383,-219.0,0.00026401,3]
[345569561,1734357043393,-219.0,0.00026401,3]
[345569562,1734357043402,-219.0,0.00026401,3]
[345569563,1734357043414,-219.0,0.00026401,3]
[345569564,1734357043423,-219.0,0.00026401,3]
[345569566,1734357043432,-219.0,0.00026401,3]
[345569568,1734357043442,-219.0,0.00026401,3]
[345569570,1734357043452,-219.0,0.00026401,3]
[345569581,1734357043578,-219.0,0.00026401,3]
[345569583,1734357043589,-219.0,0.00026401,3]
[345569585,1734357043599,-219.0,0.00026401,3]
[345569587,1734357043608,-219.0,0.00026401,3]
[345569588,1734357043618,-219.0,0.00026401,3]
[345569590,1734357043627,-500.0,0.00026473,2]
[345569592,1734357043637,-375.96655049,0.00026473,2]
[345569593,1734357043646,-504.47709868,0.00026473,2]
[345569594,1734357043656,-260.91799688,0.00026473,2]
[345569595,1734357043669,-500.0,0.00026473,2]
[345569596,1734357043684,-500.0,0.00026473,2]
[345569597,1734357043694,-500.94952401,0.00026473,2]
[345569598,1734357043703,-250.62874063,0.00026473,2]
[345569599,1734357043713,-606.07244226,0.00026473,2]
[345569600,1734357043722,-254.90827084,0.00026499,2]
[345569601,1734357043732,-292.28432058,0.00026499,2]
[345569602,1734357043741,-500.0,0.00026499,2]
[345569603,1734357043751,-250.04579796,0.00026499,2]
[345569604,1734357043762,-500.0,0.00026499,2]
[345569605,1734357043772,-500.0,0.00026499,2]
[345569606,1734357043781,-24218.53207338,0.000265,2]
[345569607,1734357043791,-488.92609037,0.000265,2]
[345569608,1734357043800,-1066557.74100796,0.000265,2]
[345569609,1734357043812,-341.61618251,0.000265,2]
[345569610,1734357043823,-32439.84626437,0.000265,2]
[345569623,1734357045928,-4157.6,0.000265,2]
[345569630,1734357304522,407.84,0.0002556,120]
[345569634,1734357715890,162.610108,0.00013973,2]
[345569693,1734358232340,-309.7139885,0.00021761,2]
[345569734,1734358238278,-731.75138756,0.00021761,2]
[345569736,1734358238288,-3405.59551452,0.00021981,2]
[345569940,1734358240202,-457.97681533,0.00021981,2]
[345569942,1734358240211,-155.18777721,0.00022427,2]
[345569944,1734358240222,-250.0,0.00023133,2]
[345569946,1734358240231,-650.2556135,0.00023163,11]
[345569948,1734358240240,-173.510313,0.00023178,2]
[345569950,1734358240249,-251.768045,0.00023215,2]
[345569952,1734358240259,-5572.2364688,0.00023259,2]
[345569954,1734358240268,-219.7562634,0.00023282,2]
[345569956,1734358240278,-159.5923543,0.00023452,2]
[345569958,1734358240287,-158.30554603,0.00023548,2]
[345569960,1734358240297,-967.01630524,0.00023882,2]
[345569962,1734358240306,-208.23760033,0.00024335,2]
[345569964,1734358240315,-173.1951166,0.00024486,2]
[345569966,1734358240324,-300.0,0.00024585,2]
[345569968,1734358240334,-173.1951166,0.00024586,2]
[345569970,1734358240343,-6239.95450104,0.0002459,2]
[345569980,1734358240352,-173.1951166,0.00024686,2]
[345569983,1734358240446,-487.24926719,0.00024797,2]
[345569985,1734358240457,-175.753,0.00024797,8]
[345569987,1734358240466,-80476.53,0.00024798,2]
[345569989,1734358240475,-822.94314538,0.00024944,2]
[345569991,1734358240490,-469.24,0.00025044,2]
[345569993,1734358240499,-270.84465996,0.0002507,2]
[345569995,1734358240512,-740.621,0.0002517,2]
[345569997,1734358240521,-804.5754554,0.00025175,2]
[345569999,1734358240532,-1000.0,0.00025275,2]
[345570001,1734358240542,-1000.0,0.00025275,2]
[345570003,1734358240553,-1000.0,0.00025275,2]
[345570005,1734358240562,-667.48047229,0.00025275,2]
[345570285,1734358243182,-332.51952771,0.00025275,2]
[345570287,1734358243192,-34.90233564,0.00025275,2]
[345570290,1734358243208,-965.09766436,0.00025275,2]
[345570291,1734358243217,-180.77,0.00025275,2]
[345570294,1734358243226,-9114.80645926,0.00025387,2]
[345570296,1734358243237,-300.0,0.00025499,2]
[345570297,1734358243246,-185.748112,0.0002551,2]
[345570300,1734358243256,-4529.8488354,0.0002551,2]
[345570302,1734358243266,-9114.80645926,0.00025523,2]
[345570304,1734358243276,-822.94314535,0.00025647,2]
[345570306,1734358243285,-804.5754554,0.00025675,2]
[345570307,1734358243296,-270.84465996,0.00025685,2]
[345570309,1734358243306,-312.89598858,0.00025741,2]
[345570311,1734358243316,-400.0,0.00025753,2]
[345570314,1734358243326,-1000.0,0.000258,4]
[345570316,1734358243336,-9114.80645926,0.00025864,2]
[345570318,1734358243346,-500.0,0.00026027,7]
[345570319,1734358243355,-500.0,0.00026027,7]
[345570322,1734358243365,-500.0,0.00026027,7]
[345570324,1734358243374,-500.0,0.00026027,7]
[345570326,1734358243384,-500.0,0.00026027,7]
[345570328,1734358243393,-500.0,0.00026027,7]
[345570330,1734358243403,-500.0,0.00026027,7]
[345570331,1734358243412,-500.0,0.00026027,7]
[345570333,1734358243422,-9114.80645928,0.00026129,2]
[345570336,1734358243432,-804.5754554,0.00026175,2]
[345570338,1734358243441,-1000.0,0.000262,5]
[345570340,1734358243451,-1000.0,0.000262,6]
[345570342,1734358243461,-1000.0,0.000262,7]
[345570344,1734358243471,-695.1371532,0.00026234,4]
[345570346,1734358243480,-151.157,0.00026297,2]
[345570348,1734358243490,-533.0,0.00026297,2]
[345570350,1734358243500,-2154.0,0.00026297,2]
[345570352,1734358243514,-2368.0,0.00026297,2]
[345570354,1734358243524,-270.84465996,0.000263,2]
[345570356,1734358243533,-3191.876325,0.00026333,10]
[345570358,1734358243543,-822.94314535,0.0002635,2]
[345570360,1734358243554,-572.65082938,0.00026373,2]
[345570362,1734358243564,-572.65082938,0.0002638,2]
[345570364,1734358243573,-572.65082938,0.00026387,2]
[345570366,1734358243584,-572.65082938,0.00026393,2]
[345570368,1734358243594,-151.0,0.000264,16]
[345570370,1734358243604,-32307.9084293,0.000264,3]
[345570372,1734358243614,-572.65082938,0.000264,2]
[345570374,1734358243623,-191.44,0.000264,7]
[345570376,1734358243633,-1330.09750965,0.000264,2]
[345570378,1734358243642,-500.0,0.00026473,2]
[345570380,1734358243651,-500.0,0.00026473,2]
[345570382,1734358243660,-580.88266517,0.00026473,2]
[345570384,1734358243670,-500.7925986,0.00026473,2]
[345570386,1734358243679,-500.0,0.00026473,2]
[345570388,1734358243689,-572.3261641,0.00026473,2]
[345570390,1734358243698,-504.17419517,0.00026473,2]
[345570392,1734358243707,-501.26920096,0.00026473,2]
[345570394,1734358243717,-500.0,0.00026473,2]
[345570396,1734358243726,-242.98612685,0.00026499,2]
[345570398,1734358243737,-160.0,0.00026499,2]
[345570400,1734358243746,-204.59902441,0.00026499,2]
[345570402,1734358243755,-500.0,0.00026499,2]
[345570404,1734358243765,-178.43578959,0.00026499,2]
[345570406,1734358243774,-405.70819038,0.00026499,2]
[345570408,1734358243784,-500.0,0.00026499,2]
[345570410,1734358243793,-464.46284393,0.00026499,2]
[345570412,1734358243803,-500.0,0.00026499,2]
[345570414,1734358243812,-584.49442683,0.00026499,2]
[345570416,1734358243822,-500.0,0.00026499,2]
[345570418,1734358243831,-500.0,0.00026499,2]
[345570420,1734358243840,-500.0,0.00026499,2]
[345570422,1734358243850,-500.0,0.00026499,2]
[345570424,1734358243859,-535.24653413,0.00026499,2]
[345570426,1734358243868,-500.0,0.00026499,2]
[345570428,1734358243878,-500.0,0.00026499,2]
[345570430,1734358243887,-500.0,0.00026499,2]
[345570432,1734358243896,-501.50767005,0.00026499,2]
[345570434,1734358243905,-500.0,0.00026499,2]
[345570436,1734358243914,-500.0,0.00026499,2]
[345570438,1734358243923,-500.0,0.00026499,2]
[345570440,1734358243932,-500.0,0.00026499,2]
[345570442,1734358243942,-498.70340063,0.00026499,2]
[345570444,1734358243951,-500.0,0.00026499,2]
[345570454,1734358244035,-500.0,0.00026499,2]
[345570456,1734358244046,-500.0,0.00026499,2]
[345570458,1734358244055,-500.0,0.00026499,2]
[345570460,1734358244064,-500.0,0.00026499,2]
[345570462,1734358244075,-500.0,0.00026499,2]
[345570464,1734358244086,-500.0,0.00026499,2]
[345570466,1734358244096,-500.0,0.00026499,2]
[345570468,1734358244105,-500.0,0.00026499,2]
[345570470,1734358244115,-500.0,0.00026499,2]
[345570473,1734358244125,-500.0,0.00026499,2]
[345570475,1734358244134,-500.0,0.00026499,2]
[345570477,1734358244143,-500.0,0.00026499,2]
[345570479,1734358244153,-500.0,0.00026499,2]
[345570481,1734358244162,-500.0,0.00026499,2]
[345570483,1734358244172,-500.0,0.00026499,2]
[345570485,1734358244181,-500.0,0.00026499,2]
[345570487,1734358244191,-500.0,0.00026499,2]
[345570489,1734358244200,-500.0,0.00026499,2]
[345570491,1734358244209,-500.0,0.00026499,2]
[345570493,1734358244219,-500.0,0.00026499,2]
[345570495,1734358244228,-500.0,0.00026499,2]
[345570497,1734358244242,-500.0,0.00026499,2]
[345570499,1734358244252,-500.0,0.00026499,2]
[345570501,1734358244261,-500.0,0.00026499,2]
[345570503,1734358244271,-501.43908002,0.00026499,2]
[345570505,1734358244280,-500.0,0.00026499,2]
[345570507,1734358244290,-399.05607282,0.00026499,2]
[345570509,1734358244300,-500.0,0.00026499,2]
[345570511,1734358244309,-500.0,0.00026499,2]
[345570513,1734358244319,-500.0,0.00026499,2]
[345570515,1734358244329,-500.0,0.00026499,2]
[345570517,1734358244339,-500.0,0.00026499,2]
[345570519,1734358244349,-500.0,0.00026499,2]
[345570521,1734358244364,-500.0,0.00026499,2]
[345570523,1734358244376,-500.0,0.00026499,2]
[345570525,1734358244386,-500.0,0.00026499,2]
[345570527,1734358244396,-500.0,0.00026499,2]
[345570529,1734358244405,-500.0,0.00026499,2]
[345570531,1734358244415,-500.0,0.00026499,2]
[345570533,1734358244425,-500.0,0.00026499,2]
[345570535,1734358244435,-500.0,0.00026499,2]
[345570537,1734358244444,-500.0,0.00026499,2]
[345570539,1734358244454,-500.0,0.00026499,2]
[345570541,1734358244464,-500.0,0.00026499,2]
[345570543,1734358244473,-500.0,0.00026499,2]
[345570545,1734358244485,-500.0,0.00026499,2]
[345570547,1734358244495,-500.0,0.00026499,2]
[345570550,1734358244505,-500.0,0.00026499,2]
[345570552,1734358244519,-500.0,0.00026499,2]
[345570554,1734358244529,-500.0,0.00026499,2]
[345570556,1734358244538,-500.0,0.00026499,2]
[345570558,1734358244548,-500.0,0.00026499,2]
[345570560,1734358244558,-500.0,0.00026499,2]
[345570562,1734358244568,-500.0,0.00026499,2]
[345570564,1734358244577,-500.0,0.00026499,2]
[345570566,1734358244587,-500.0,0.00026499,2]
[345570568,1734358244598,-500.0,0.00026499,2]
[345570570,1734358244607,-500.0,0.00026499,2]
[345570572,1734358244616,-500.0,0.00026499,2]
[345570574,1734358244625,-265.24988728,0.00026499,2]
[345570576,1734358244634,-500.0,0.00026499,2]
[345570578,1734358244643,-500.0,0.00026499,2]
[345570580,1734358244653,-500.0,0.00026499,2]
[345570582,1734358244662,-500.0,0.00026499,2]
[345570584,1734358244671,-500.0,0.00026499,2]
[345570586,1734358244680,-130792.45075119,0.000265,2]
[345570588,1734358244690,-4412.23380447,0.000265,2]
[345570590,1734358244700,-1856710.21076845,0.000265,2]
[345570592,1734358244709,-6255.33193631,0.000265,2]
[345570733,1734358246143,-2128.73058043,0.000265,2]
[345570735,1734358246155,-1978.13821026,0.000265,2]
[345570738,1734358246164,-9704.33544971,0.000265,2]
[345571328,1734358581180,161.473317,0.00013973,2]
[345571377,1734359432371,-2495.07204462,0.00022787,2]
[345571378,1734359432381,-511.63270726,0.00023,23]
[345571562,1734359440319,-488.36729274,0.00023,23]
[345571564,1734359440328,-17.69507302,0.0002325,2]
[345571866,1734359443280,-563.50175514,0.0002325,2]
[345571868,1734359443290,-1000.0,0.00024,24]
[345571870,1734359443299,-500.0,0.00024474,2]
[345571872,1734359443308,-300.0,0.00024669,2]
[345571874,1734359443318,-300.0,0.00024669,2]
[345571876,1734359443328,-15810.1762056,0.0002467,2]
[345571878,1734359443338,-176.3223987,0.00024889,2]
[345571880,1734359443347,-1000.0,0.00025,25]
[345571882,1734359443356,-20595.82473759,0.00025,2]
[345571884,1734359443366,-166.45242313,0.00025,2]
[345571886,1734359443376,-33910.65101525,0.00025,2]
[345571888,1734359443385,-204.58628818,0.00025,2]
[345571890,1734359443394,-348.77488673,0.00025,2]
[345571892,1734359443404,-709.834,0.0002517,2]
[345571894,1734359443413,-908.8505658,0.00025174,2]
[345571895,1734359443422,-500.0,0.00025175,2]
[345571898,1734359443431,-2738.185,0.000255,7]
[345571900,1734359443440,-1999.999999,0.0002556,2]
[345571902,1734359443450,-500.0,0.00025675,2]
[345571904,1734359443459,-500.0,0.00025697,2]
[345571906,1734359443468,-400.0,0.00025753,2]
[345571908,1734359443478,-1000.0,0.00026,26]
[345571910,1734359443487,-5376.99774968,0.00026,5]
[345571912,1734359443497,-531.62936738,0.00026,2]
[345571914,1734359443509,-512.84660588,0.00026,2]
[345571916,1734359443518,-11580.39769425,0.00026,2]
[345571918,1734359443528,-3638.57572835,0.00026,2]
[345571920,1734359443537,-75461.77298817,0.00026,3]
[345572190,1734359446315,-2368.0,0.00025925,2]
[345572192,1734359446325,-735.26408557,0.00026,3]
[345572195,1734359446338,-3909.51790999,0.00026,3]
[345572409,1734359449975,162.655974,0.00013973,2]
[345572457,1734360309288,382.16112803,0.00023,120]
[345572458,1734360313482,162.655974,0.00013973,2]
[345573288,1734360639602,-1716.57591046,0.00024096,2]
[345573289,1734360639612,-163.215741,0.00024834,2]
[345573290,1734360639622,-300.0,0.00025061,2]
[345573291,1734360639631,-300.0,0.00025061,2]
[345573292,1734360639641,-11052.86446234,0.00025062,2]
[345573293,1734360639653,-4888.20997256,0.00025062,2]
[345573294,1734360639663,-698.591,0.0002517,2]
[345573295,1734360639673,-609.150911,0.00025175,2]
[345573296,1734360639682,-400.0,0.00025753,2]
[345573297,1734360639692,-1868.0,0.000258,2]
[345573298,1734360639702,-579.04845986,0.00025899,2]
[345573299,1734360639712,-2206.11690224,0.000259,2]
[345573300,1734360639721,-18919.1066202,0.000259,2]
[345573301,1734360639733,-7547.18517786,0.000259,2]
[345573302,1734360639749,-928.3289022,0.000259,2]
[345573303,1734360639764,-1145.37597596,0.000259,2]
[345573304,1734360639776,-13871.57218975,0.000259,2]
[345573308,1734360640649,-22984.65650962,0.000259,2]
[345573309,1734360640659,-179907.08444842,0.000259,2]
[345573310,1734360640668,-423.90784345,0.00025999,2]
[345573311,1734360640678,-500.0,0.00025999,2]
[345573312,1734360640688,-500.0,0.00025999,2]
[345573313,1734360640697,-500.0,0.00025999,2]
[345573314,1734360640707,-639.90560728,0.00025999,2]
[345573315,1734360640716,-500.0,0.00025999,2]
[345573316,1734360640726,-500.0,0.00025999,2]
[345573317,1734360640737,-500.0,0.00025999,2]
[345573318,1734360640746,-500.0,0.00025999,2]
[345573319,1734360640756,-500.0,0.00025999,2]
[345573320,1734360640765,-500.0,0.00025999,2]
[345573321,1734360640774,-500.0,0.00025999,2]
[345573322,1734360640784,-500.0,0.00025999,2]
[345573323,1734360640793,-500.0,0.00025999,2]
[345573324,1734360640803,-500.0,0.00025999,2]
[345573325,1734360640812,-237.50436823,0.00025999,2]
[345573326,1734360640828,-262.49563177,0.00025999,2]
[345573327,1734360640838,-500.0,0.00025999,2]
[345573328,1734360640848,-500.0,0.00025999,2]
[345573329,1734360640857,-500.0,0.00025999,2]
[345573330,1734360640867,-500.0,0.00025999,2]
[345573331,1734360640876,-500.0,0.00025999,2]
[345573332,1734360640886,-500.0,0.00025999,2]
[345573333,1734360640895,-500.0,0.00025999,2]
[345573334,1734360640905,-500.0,0.00025999,2]
[345573335,1734360640918,-500.0,0.00025999,2]
[345573336,1734360640928,-500.0,0.00025999,2]
[345573337,1734360640938,-500.0,0.00025999,2]
[345573338,1734360640948,-500.0,0.00025999,2]
[345573339,1734360640958,-500.0,0.00025999,2]
[345573340,1734360640968,-500.0,0.00025999,2]
[345573341,1734360640977,-500.0,0.00025999,2]
[345573342,1734360640988,-500.0,0.00025999,2]
[345573343,1734360640998,-500.0,0.00025999,2]
[345573344,1734360641007,-500.0,0.00025999,2]
[345573345,1734360641017,-636.60131097,0.00025999,2]
[345573346,1734360641027,-500.0,0.00025999,2]
[345573347,1734360641037,-271.29546321,0.00025999,2]
[345573348,1734360641047,-500.0,0.00025999,2]
[345573349,1734360641056,-9732.03886923,0.00025999,3]
[345573350,1734360641066,-175.753,0.00025999,12]
[345573351,1734360641076,-26166.09478354,0.00026,3]
[345573352,1734360641088,-6601.00114522,0.00026,3]
[345573353,1734360641097,-9071.67982982,0.00026,2]
[345573354,1734360641111,-3934.54999999,0.00026,2]
[345573417,1734360643684,-259.49229768,0.00026,2]
[345573447,1734360646476,-524.98275357,0.0002574,2]
[345573448,1734360646486,-7903.01724643,0.00026,2]
[345573449,1734360646524,-6195.0,0.00026,2]
[345573451,1734360646583,-117375.67840236,0.00026,2]
[345573453,1734361058429,24900.0,0.00022885,2]
[345573457,1734361461222,14100.0,0.00023,2]
[345573458,1734361461246,1771.0,0.00023,2]
[345573459,1734361473899,6751.5783823,0.0002268,2]
[345573460,1734361484613,788.2893929,0.00022906,2]
[345573461,1734361497453,4569.4762508,0.0002268,2]
[345573462,1734361597725,-174.506555,0.00022327,2]
[345573463,1734361597747,-204.9348422,0.00022488,2]
[345573464,1734361597769,-300.0,0.00022679,2]
[345573465,1734361597790,-6945.5586028,0.0002268,2]
[345573466,1734361623955,-4389.5970039,0.0002268,2]
[345573480,1734361662238,9650.7960028,0.00022906,2]
[345574076,1734361838942,-766.980772,0.00023162,2]
[345574077,1734361838952,-300.0,0.00023435,2]
[345574078,1734361838962,-300.0,0.00023435,2]
[345574079,1734361838973,-9893.81058075,0.00023436,2]
[345574080,1734361838983,-393.92297257,0.00023462,2]
[345574081,1734361839105,-97.84357572,0.00023462,2]
[345574082,1734361839115,-163.7914718,0.00023562,2]
[345574083,1734361839126,-491.76654829,0.00023593,2]
[345574084,1734361839136,-491.76654829,0.00023723,2]
[345574085,1734361839146,-9893.81058075,0.00023802,2]
[345574086,1734361839157,-195.04,0.00023823,2]
[345574087,1734361839168,-931.95627117,0.00024039,2]
[345574088,1734361839179,-9893.81058075,0.00024109,2]
[345574089,1734361839189,-9893.81058075,0.00024116,2]
[345574090,1734361839199,-525.55823501,0.00024139,2]
[345574091,1734361839209,-952.77890934,0.00024239,2]
[345574092,1734361839218,-152.0,0.0002429,2]
[345574093,1734361839228,-1141.15475756,0.00024324,2]
[345574094,1734361839238,-9893.81058075,0.00024521,2]
[345574095,1734361839248,-161.52387279,0.00024553,2]
[345574096,1734361839258,-181.912672,0.00024566,2]
[345574097,1734361839268,-161.52387279,0.00024653,2]
[345574098,1734361839280,-166.21443996,0.000247,2]